lending/lending_fUSD_20251106
["ID","MTS","AMOUNT","RATE_DAILY","PERIOD"]
[393249644,1762387418971,23966.99081297,0.000155,3]
[393249645,1762387589766,176.22,0.00013004,2]
[393249646,1762387614021,500.0,0.00015098,2]
[393249669,1762387832154,-215.9259,0.00015925,2]
[393249671,1762387832164,-195.0,0.00015927,2]
[393249673,1762387832174,-250.0,0.00015929,2]
[393249675,1762387832183,-32.48188321,0.00015975,2]
[393249677,1762387832194,-162.51811679,0.00015975,2]
[393249679,1762387832203,-250.0,0.00015977,2]
[393249682,1762387832213,-2751.0,0.00016009,2]
[393249685,1762387832222,-1200.0,0.00016035,2]
[393249688,1762387832231,-300.0,0.00016035,2]
[393249691,1762387832241,-12737.1,0.00016036,2]
[393249694,1762387832250,-500.0,0.00016099,2]
[393249697,1762387832259,-999.999999,0.00016157,2]
[393249700,1762387832268,-152.63049321,0.00016209,2]
[393249703,1762387832278,-200.0,0.00016284,2]
[393249705,1762387832288,-500.0,0.00016356,2]
[393249707,1762387832297,-500.0,0.00016356,2]
[393249709,1762387832306,-700.0,0.00016356,2]
[393249710,1762387832315,-500.0,0.00016367,2]
[393249711,1762387832326,-500.0,0.00016367,2]
[393249712,1762387832335,-500.0,0.00016367,2]
[393249713,1762387832345,-500.0,0.00016367,2]
[393249714,1762387832354,-500.0,0.00016367,2]
[393249715,1762387832364,-500.0,0.00016367,2]
[393249716,1762387832373,-500.0,0.00016367,2]
[393249717,1762387832382,-500.0,0.00016367,2]
[393249718,1762387832391,-500.0,0.00016367,2]
[393249719,1762387832400,-500.0,0.00016367,2]
[393249720,1762387832410,-500.0,0.00016367,2]
[393249721,1762387832419,-250.0,0.00016367,2]
[393249722,1762387832429,-370.89842566,0.00016367,2]
[393249723,1762387832438,-8630.59,0.00016377,2]
[393249724,1762387832446,-500.0,0.000164,2]
[393249725,1762387832455,-516.43133353,0.000164,2]
[393249726,1762387832465,-500.0,0.000164,2]
[393249727,1762387832474,-500.0,0.000164,2]
[393249728,1762387832483,-500.0,0.000164,2]
[393249729,1762387832492,-164.08213925,0.000164,2]
[393249730,1762387832501,-500.0,0.000164,2]
[393249731,1762387832511,-500.0,0.000164,2]
[393249732,1762387832520,-500.0,0.000164,2]
[393249733,1762387832530,-500.0,0.00016438,2]
[393249734,1762387832540,-761.46,0.00016438,2]
[393249735,1762387832549,-344.0,0.00016639,2]
[393249736,1762387832559,-2845.03,0.00016675,2]
[393249737,1762387832569,-344.0,0.00016861,2]
[393249738,1762387832579,-344.0,0.00016885,2]
[393249739,1762387832588,-1000.0,0.000169,6]
[393249740,1762387832597,-852.66796668,0.00016948,2]
[393249741,1762387832607,-1000.0,0.00016948,2]
[393249742,1762387832617,-1000.0,0.00016948,2]
[393249743,1762387832626,-1096.8631119,0.00016948,2]
[393249744,1762387832635,-500.0,0.00017,2]
[393249745,1762387832644,-535.51,0.00017,7]
[393249746,1762387832654,-500.0,0.00017,7]
[393249747,1762387832663,-500.0,0.00017,7]
[393249748,1762387832673,-500.0,0.00017,7]
[393249749,1762387832683,-207.0227131,0.00017,7]
[393249750,1762387832717,-292.9772869,0.00017,7]
[393249751,1762387832727,-2411.90587241,0.00017011,2]
[393249752,1762387832738,-432.28178068,0.00017011,2]
[393249753,1762387832750,-1038.3,0.00017011,2]
[393249754,1762387832765,-2005.51234691,0.00017011,2]
[393249755,1762387832774,-500.0,0.0001704,2]
[393249756,1762387832785,-500.0,0.0001704,2]
[393249757,1762387832794,-176.88,0.00017068,2]
[393249758,1762387832803,-176.88,0.00017068,2]
[393249759,1762387832812,-353.76,0.00017068,2]
[393249760,1762387832822,-176.88,0.00017068,2]
[393249761,1762387832832,-2100.0,0.000171,6]
[393249762,1762387832842,-344.0,0.00017115,2]
[393249763,1762387832851,-344.0,0.00017148,2]
[393249764,1762387832862,-893.58488772,0.00017151,2]
[393249765,1762387832871,-221.75791629,0.00017162,2]
[393249766,1762387832880,-3100.0,0.000172,6]
[393249767,1762387832889,-4200.0,0.000173,6]
[393249768,1762387832898,-1000.0,0.00017313,2]
[393249769,1762387832907,-2500.0,0.00017313,2]
[393249770,1762387832915,-17797.55516896,0.00017313,2]
[393249771,1762387832927,-1122.51933016,0.00017313,2]
[393249780,1762387837579,-625.0443214,0.00016588,2]
[393249782,1762387837589,-308.38750736,0.00017312,2]
[393249784,1762387837599,-4840.71341582,0.00017313,2]
[393249786,1762387837610,-2090.0,0.00017313,2]
[393249788,1762387837624,-281.55,0.00017313,2]
[393249797,1762387837749,-500.0,0.00017312,2]
[393249798,1762387837759,-2375.5170958,0.00017313,2]
[393249799,1762387837770,-1338.46519643,0.00017313,2]
[393249800,1762387837781,-1608.71899582,0.00017313,2]
[393249801,1762387837815,-43883.08664451,0.00017313,2]
[393249803,1762387837827,-1665.8,0.00017313,2]
[393249935,1762387840123,-298.33990466,0.00017312,2]
[393249937,1762387840133,-500.0,0.00017312,2]
[393249938,1762387840142,-168.69229129,0.00017312,2]
[393249940,1762387840151,-788.96780405,0.00017313,2]
[393249945,1762387842853,-500.0,0.00017,7]
[393249946,1762387842864,-500.0,0.00017,7]
[393249947,1762387842873,-4547.0,0.00017313,2]
[393249948,1762387842884,-469.06607036,0.00017313,2]
[393249949,1762387842895,-498.152,0.00017313,2]
[393249950,1762387842906,-540.17391,0.00017313,2]
[393249951,1762387843010,-2000.0,0.00017,2]
[393249952,1762387843019,-151290.69249477,0.00017313,2]
[393249953,1762387843161,-3255.04061146,0.00017313,2]
[393249954,1762387843172,-333.44283979,0.00017313,2]
[393249959,1762387845723,-1333.66904008,0.00017313,2]
[393249960,1762387846215,-296.92718118,0.00017313,2]
[393249962,1762387846229,-808.13842488,0.00017313,2]
[393249965,1762387944332,-500.0,0.00015825,2]
[393249973,1762388429956,-195.0,0.00016288,2]
[393249974,1762388429979,-507.27,0.00016293,2]
[393249975,1762388430000,-150.0,0.00016341,2]
[393249976,1762388430026,-500.0,0.00016356,2]
[393249977,1762388430048,-600.0,0.00016356,2]
[393249978,1762388430070,-500.0,0.00016356,2]
[393249979,1762388430093,-1200.0,0.00016381,2]
[393249980,1762388430114,-1200.0,0.00016382,2]
[393249981,1762388430135,-147.73,0.00016382,2]
[393249993,1762388479941,754.89,0.00013699,2]
[393249999,1762388539142,-500.0,0.00025142,120]
[393250000,1762388539203,-194.126306,0.00025399,120]
[393250001,1762388539267,-555.395878,0.00025399,120]
[393250002,1762388539335,-500.0,0.00026556,120]
[393250003,1762388539447,-500.0,0.0002797,120]
[393250004,1762388539513,-500.0,0.00029384,120]
[393250005,1762388539575,-334.29776122,0.0002998,120]
[393250006,1762388539636,-560.02712208,0.0003,120]
[393250007,1762388539694,-1092.10547701,0.0003,120]
[393250008,1762388539754,-988.58641999,0.0003,120]
[393250009,1762388539815,-484.11875364,0.0003,120]
[393250010,1762388539877,-302.0,0.0003,120]
[393250011,1762388539939,-508.78147553,0.00030136,120]
[393250012,1762388552403,-408.87449022,0.00038591,120]
[393250013,1762388552465,-632.67,0.00038591,120]
[393250014,1762388552526,-632.67,0.00038591,120]
[393250015,1762388552586,-632.67,0.00038591,120]
[393250016,1762388552645,-632.67,0.00038591,120]
[393250017,1762388552704,-632.67,0.00038591,120]
[393250018,1762388552767,-632.67,0.00038591,120]
[393250019,1762388552829,-632.67,0.00038591,120]
[393250020,1762388552892,-632.67,0.00038591,120]
[393250021,1762388552953,-632.67,0.00038591,120]
[393250022,1762388553013,-632.67,0.00038591,120]
[393250023,1762388553078,-632.67,0.00038591,120]
[393250024,1762388553138,-632.67,0.00038591,120]
[393250025,1762388553200,-632.67,0.00038591,120]
[393250026,1762388553262,-632.67,0.00038591,120]
[393250027,1762388553325,-632.67,0.00038591,120]
[393250028,1762388553387,-632.67,0.00038591,120]
[393250029,1762388553448,-632.67,0.00038591,120]
[393250030,1762388553511,-632.67,0.00038591,120]
[393250031,1762388553573,-632.67,0.00038591,120]
[393250032,1762388553634,-632.67,0.00038591,120]
[393250033,1762388553693,-632.7429457,0.00038591,120]
[393250034,1762388553755,-1483.04,0.00038591,120]
[393250035,1762388553814,-1483.04,0.00038591,120]
[393250036,1762388553874,-1483.04,0.00038591,120]
[393250037,1762388553934,-1483.04,0.00038591,120]
[393250038,1762388553994,-1483.04,0.00038591,120]
[393250039,1762388554056,-1483.04,0.00038591,120]
[393250040,1762388554119,-1483.04,0.00038591,120]
[393250041,1762388554187,-1483.04,0.00038591,120]
[393250042,1762388554253,-1483.04,0.00038591,120]
[393250043,1762388554318,-1483.04,0.00038591,120]
[393250044,1762388554382,-1483.04,0.00038591,120]
[393250045,1762388554445,-1483.04,0.00038591,120]
[393250046,1762388554506,-1483.04,0.00038591,120]
[393250047,1762388554568,-1483.04,0.00038591,120]
[393250048,1762388554631,-1483.04,0.00038591,120]
[393250049,1762388554692,-1483.04,0.00038591,120]
[393250050,1762388554755,-1483.04,0.00038591,120]
[393250051,1762388554815,-1483.04,0.00038591,120]
[393250052,1762388554874,-1483.04,0.00038591,120]
[393250053,1762388554936,-1483.04,0.00038591,120]
[393250054,1762388554996,-1483.04,0.00038591,120]
[393250055,1762388555060,-1483.04,0.00038591,120]
[393250056,1762388555127,-1483.04,0.00038591,120]
[393250057,1762388555195,-1483.15131278,0.00038591,120]
[393250058,1762388555258,-1637.48,0.00038591,120]
[393250059,1762388555318,-1637.48,0.00038591,120]
[393250060,1762388555379,-1637.48,0.00038591,120]
[393250061,1762388555442,-1637.48,0.00038591,120]
[393250062,1762388555503,-1637.48,0.00038591,120]
[393250063,1762388555568,-1637.48,0.00038591,120]
[393250064,1762388555629,-1637.48,0.00038591,120]
[393250065,1762388555691,-1637.48,0.00038591,120]
[393250066,1762388555753,-1637.48,0.00038591,120]
[393250067,1762388555812,-1637.48,0.00038591,120]
[393250068,1762388555874,-1637.48,0.00038591,120]
[393250069,1762388555936,-1637.48,0.00038591,120]
[393250070,1762388555998,-1637.48,0.00038591,120]
[393250071,1762388556059,-1637.48,0.00038591,120]
[393250072,1762388556119,-1637.48,0.00038591,120]
[393250073,1762388556183,-1637.48,0.00038591,120]
[393250074,1762388556245,-1637.48,0.00038591,120]
[393250075,1762388556309,-1637.48,0.00038591,120]
[393250076,1762388556373,-1637.48,0.00038591,120]
[393250077,1762388556603,-1637.48,0.00038591,120]
[393250078,1762388556660,-1637.48,0.00038591,120]
[393250079,1762388556719,-1637.48,0.00038591,120]
[393250080,1762388556777,-1637.48,0.00038591,120]
[393250081,1762388556835,-1637.67875216,0.00038591,120]
[393250082,1762388556897,-517.39563051,0.00038591,120]
[393250083,1762388556956,-824.93,0.00038591,120]
[393250084,1762388557017,-824.93,0.00038591,120]
[393250085,1762388557077,-824.93,0.00038591,120]
[393250086,1762388557136,-824.93,0.00038591,120]
[393250087,1762388557196,-824.93,0.00038591,120]
[393250088,1762388557256,-824.93,0.00038591,120]
[393250089,1762388557317,-824.93,0.00038591,120]
[393250090,1762388557379,-824.93,0.00038591,120]
[393250091,1762388557439,-824.93,0.00038591,120]
[393250092,1762388557498,-824.93,0.00038591,120]
[393250093,1762388557557,-824.93,0.00038591,120]
[393250094,1762388557618,-824.93,0.00038591,120]
[393250095,1762388557679,-824.93,0.00038591,120]
[393250096,1762388557738,-824.93,0.00038591,120]
[393250097,1762388557797,-824.93,0.00038591,120]
[393250098,1762388557854,-824.93,0.00038591,120]
[393250099,1762388557913,-824.93,0.00038591,120]
[393250100,1762388557971,-824.93,0.00038591,120]
[393250101,1762388558032,-824.93,0.00038591,120]
[393250102,1762388558092,-824.93,0.00038591,120]
[393250103,1762388558157,-824.93,0.00038591,120]
[393250104,1762388558218,-824.93,0.00038591,120]
[393250105,1762388558281,-824.93,0.00038591,120]
[393250106,1762388558342,-825.12258087,0.00038591,120]
[393250107,1762388558400,-902.57,0.00038591,120]
[393250108,1762388558458,-902.57,0.00038591,120]
[393250109,1762388558519,-902.57,0.00038591,120]
[393250110,1762388558578,-902.57,0.00038591,120]
[393250111,1762388558636,-902.57,0.00038591,120]
[393250112,1762388558696,-902.57,0.00038591,120]
[393250113,1762388558757,-902.57,0.00038591,120]
[393250114,1762388558819,-902.57,0.00038591,120]
[393250115,1762388558881,-902.57,0.00038591,120]
[393250116,1762388558943,-902.57,0.00038591,120]
[393250117,1762388559005,-902.57,0.00038591,120]
[393250118,1762388559069,-902.57,0.00038591,120]
[393250119,1762388559131,-902.57,0.00038591,120]
[393250120,1762388559195,-902.57,0.00038591,120]
[393250121,1762388559258,-902.57,0.00038591,120]
[393250122,1762388559319,-902.57,0.00038591,120]
[393250123,1762388559380,-902.57,0.00038591,120]
[393250124,1762388559443,-902.57,0.00038591,120]
[393250125,1762388559503,-902.57,0.00038591,120]
[393250126,1762388559564,-902.57,0.00038591,120]
[393250127,1762388559623,-902.57,0.00038591,120]
[393250128,1762388559684,-902.57,0.00038591,120]
[393250129,1762388559744,-902.57,0.00038591,120]
[393250130,1762388559803,-902.70087286,0.00038591,120]
[393250131,1762388559862,-518.66634307,0.00038591,120]
[393250132,1762388559919,-500.0,0.00038591,30]
[393250133,1762388559976,-500.0,0.00038591,30]
[393250134,1762388560036,-500.0,0.00038591,30]
[393250135,1762388560093,-500.0,0.00038591,30]
[393250136,1762388560153,-500.0,0.00038591,30]
[393250137,1762388560212,-500.0,0.00038591,30]
[393250138,1762388560271,-500.0,0.00038591,30]
[393250139,1762388560327,-500.0,0.00038591,30]
[393250140,1762388560387,-500.0,0.00038591,30]
[393250141,1762388560444,-500.0,0.00038591,30]
[393250142,1762388560502,-500.0,0.00038591,30]
[393250143,1762388560560,-500.0,0.00038591,30]
[393250144,1762388560618,-500.0,0.00038591,30]
[393250145,1762388560676,-500.0,0.00038591,30]
[393250146,1762388560734,-173.60075677,0.00038591,30]
[393250147,1762388560792,-500.0,0.00038591,120]
[393250148,1762388560847,-500.0,0.00038591,120]
[393250149,1762388560903,-500.0,0.00038591,120]
[393250150,1762388560962,-500.0,0.00038591,120]
[393250151,1762388561020,-500.0,0.00038591,120]
[393250152,1762388561076,-393.82655384,0.00038591,120]
[393250153,1762388561135,-344.07361924,0.00038591,120]
[393250154,1762388561193,-500.0,0.00038591,120]
[393250155,1762388561254,-500.0,0.00038591,120]
[393250156,1762388561314,-500.0,0.00038591,120]
[393250157,1762388561372,-500.0,0.00038591,120]
[393250158,1762388561429,-500.0,0.00038591,120]
[393250159,1762388561488,-500.0,0.00038591,120]
[393250160,1762388561553,-500.0,0.00038591,120]
[393250161,1762388561614,-500.0,0.00038591,120]
[393250162,1762388561673,-500.0,0.00038591,120]
[393250163,1762388561734,-500.0,0.00038591,120]
[393250164,1762388561794,-500.0,0.00038591,120]
[393250165,1762388561854,-500.0,0.00038591,120]
[393250166,1762388561915,-236.57228726,0.00038591,120]
[393250167,1762388561977,-500.0,0.00038591,120]
[393250168,1762388562038,-500.0,0.00038591,120]
[393250169,1762388562099,-500.0,0.00038591,120]
[393250170,1762388562168,-500.0,0.00038591,120]
[393250171,1762388562230,-500.0,0.00038591,120]
[393250172,1762388562290,-361.50914407,0.00038591,120]
[393250173,1762388562350,-500.0,0.00038591,120]
[393250174,1762388562410,-500.0,0.00038591,120]
[393250175,1762388562470,-500.0,0.00038591,120]
[393250176,1762388562529,-503.46220406,0.00038591,120]
[393250177,1762388562589,-500.0,0.00038591,120]
[393250178,1762388562647,-500.0,0.00038591,120]
[393250179,1762388562707,-500.0,0.00038591,120]
[393250180,1762388562905,-500.0,0.00038591,120]
[393250181,1762388562975,-500.0,0.00038591,120]
[393250182,1762388563034,-500.0,0.00038591,120]
[393250183,1762388563094,-500.0,0.00038591,120]
[393250184,1762388563158,-289.34155825,0.00038591,120]
[393250185,1762388563218,-500.0,0.00038591,30]
[393250186,1762388563279,-500.0,0.00038591,30]
[393250187,1762388563339,-500.0,0.00038591,30]
[393250188,1762388563399,-406.62676725,0.00038591,30]
[393250189,1762388563460,-500.0,0.00038591,120]
[393250190,1762388563521,-500.0,0.00038591,120]
[393250191,1762388563582,-500.0,0.00038591,120]
[393250192,1762388563641,-500.0,0.00038591,120]
[393250193,1762388563699,-155.77842656,0.00038591,120]
[393250194,1762388563757,-505.6383354,0.00038591,120]
[393250195,1762388563815,-500.0,0.00038591,120]
[393250196,1762388563872,-500.0,0.00038591,120]
[393250197,1762388563931,-500.0,0.00038591,120]
[393250198,1762388563990,-500.0,0.00038591,120]
[393250199,1762388564051,-500.0,0.00038591,120]
[393250200,1762388564112,-238.5142997,0.00038591,120]
[393250201,1762388564173,-516.78122926,0.00038591,120]
[393250202,1762388564235,-500.0,0.00038591,120]
[393250203,1762388564297,-500.0,0.00038591,120]
[393250204,1762388564358,-500.0,0.00038591,120]
[393250205,1762388564414,-500.0,0.00038591,120]
[393250206,1762388564472,-500.0,0.00038591,120]
[393250207,1762388564531,-500.0,0.00038591,120]
[393250208,1762388564591,-500.0,0.00038591,120]
[393250209,1762388564650,-507.66020252,0.00038591,120]
[393250210,1762388564710,-500.0,0.00038591,120]
[393250211,1762388564769,-500.0,0.00038591,120]
[393250212,1762388564829,-500.0,0.00038591,120]
[393250213,1762388564888,-500.0,0.00038591,120]
[393250214,1762388564946,-500.0,0.00038591,120]
[393250215,1762388565007,-630.85316835,0.00038591,120]
[393250216,1762388565065,-500.0,0.00038591,120]
[393250217,1762388565125,-500.0,0.00038591,120]
[393250218,1762388565185,-259.93884399,0.00038591,120]
[393250219,1762388565250,-500.0,0.00038591,120]
[393250220,1762388565312,-500.0,0.00038591,120]
[393250221,1762388565372,-500.0,0.00038591,120]
[393250222,1762388565430,-500.0,0.00038591,120]
[393250223,1762388565488,-500.0,0.00038591,120]
[393250224,1762388565545,-500.0,0.00038591,120]
[393250225,1762388565602,-500.0,0.00038591,120]
[393250226,1762388565658,-500.0,0.00038591,120]
[393250227,1762388565715,-500.0,0.00038591,120]
[393250228,1762388565771,-165.88570081,0.00038591,120]
[393250229,1762388565830,-506.03733701,0.00038591,120]
[393250230,1762388565887,-501.86281447,0.00038591,120]
[393250231,1762388565944,-500.0,0.00038591,120]
[393250232,1762388566000,-500.0,0.00038591,120]
[393250233,1762388566059,-500.0,0.00038591,120]
[393250234,1762388566116,-500.0,0.00038591,120]
[393250235,1762388566176,-500.0,0.00038591,120]
[393250236,1762388566236,-500.0,0.00038591,120]
[393250237,1762388566297,-500.0,0.00038591,120]
[393250238,1762388566356,-500.0,0.00038591,120]
[393250239,1762388566416,-500.0,0.00038591,120]
[393250240,1762388566473,-500.0,0.00038591,120]
[393250241,1762388566530,-500.0,0.00038591,120]
[393250242,1762388566588,-500.0,0.00038591,120]
[393250243,1762388566645,-500.0,0.00038591,120]
[393250244,1762388566701,-500.0,0.00038591,120]
[393250245,1762388566758,-500.0,0.00038591,120]
[393250246,1762388566814,-500.0,0.00038591,120]
[393250247,1762388566870,-500.0,0.00038591,120]
[393250248,1762388566927,-500.0,0.00038591,120]
[393250249,1762388566986,-600.0,0.00038591,120]
[393250250,1762388567045,-504.96759712,0.00038591,120]
[393250251,1762388567105,-500.0,0.00038591,120]
[393250252,1762388567165,-500.0,0.00038591,120]
[393250253,1762388567228,-500.0,0.00038591,120]
[393250254,1762388567287,-500.0,0.00038591,120]
[393250255,1762388567347,-500.0,0.00038591,120]
[393250256,1762388567409,-500.0,0.00038591,120]
[393250257,1762388567468,-500.0,0.00038591,120]
[393250258,1762388567530,-500.0,0.00038591,120]
[393250259,1762388567591,-500.0,0.00038591,120]
[393250260,1762388567649,-500.0,0.00038591,120]
[393250261,1762388567710,-500.0,0.00038591,120]
[393250262,1762388567771,-500.0,0.00038591,120]
[393250263,1762388567830,-500.0,0.00038591,120]
[393250264,1762388567888,-378.91318651,0.00038591,120]
[393250265,1762388567947,-501.4774273,0.00038591,120]
[393250266,1762388568005,-500.0,0.00038591,120]
[393250267,1762388568063,-513.62816357,0.00038591,120]
[393250268,1762388568121,-500.0,0.00038591,120]
[393250269,1762388568182,-500.0,0.00038591,120]
[393250270,1762388568238,-500.0,0.00038591,120]
[393250271,1762388568296,-500.0,0.00038591,120]
[393250272,1762388568354,-500.0,0.00038591,120]
[393250273,1762388568414,-500.0,0.00038591,120]
[393250274,1762388568471,-500.0,0.00038591,120]
[393250275,1762388568529,-500.0,0.00038591,120]
[393250276,1762388568588,-500.0,0.00038591,120]
[393250277,1762388568649,-500.0,0.00038591,120]
[393250278,1762388568708,-500.0,0.00038591,120]
[393250279,1762388568768,-500.0,0.00038591,120]
[393250280,1762388568827,-198.62086248,0.00038591,120]
[393250281,1762388568886,-500.0,0.00038591,120]
[393250282,1762388568947,-500.0,0.00038591,120]
[393250283,1762388569006,-500.0,0.00038591,120]
[393250284,1762388569233,-500.0,0.00038591,120]
[393250285,1762388569292,-500.0,0.00038591,120]
[393250286,1762388569351,-507.51763351,0.00038591,120]
[393250287,1762388569412,-514.78299129,0.00038591,120]
[393250288,1762388569478,-517.38906074,0.00038591,120]
[393250289,1762388569540,-500.0,0.00038591,120]
[393250290,1762388569604,-500.0,0.00038591,120]
[393250291,1762388569666,-500.0,0.00038591,120]
[393250292,1762388569729,-500.0,0.00038591,120]
[393250293,1762388569790,-500.0,0.00038591,120]
[393250294,1762388569851,-500.0,0.00038591,120]
[393250295,1762388569910,-500.0,0.00038591,120]
[393250296,1762388569974,-500.0,0.00038591,120]
[393250297,1762388570038,-500.0,0.00038591,120]
[393250298,1762388570101,-500.0,0.00038591,120]
[393250299,1762388570167,-500.0,0.00038591,120]
[393250300,1762388570232,-500.0,0.00038591,120]
[393250301,1762388570292,-500.0,0.00038591,120]
[393250302,1762388570354,-500.0,0.00038591,120]
[393250303,1762388570418,-500.0,0.00038591,120]
[393250304,1762388570481,-500.0,0.00038591,120]
[393250305,1762388570542,-500.0,0.00038591,120]
[393250306,1762388570605,-500.0,0.00038591,120]
[393250307,1762388570666,-500.0,0.00038591,120]
[393250308,1762388570728,-500.0,0.00038591,120]
[393250309,1762388570792,-500.0,0.00038591,120]
[393250310,1762388570855,-500.0,0.00038591,120]
[393250311,1762388570916,-500.0,0.00038591,120]
[393250312,1762388570974,-500.0,0.00038591,120]
[393250313,1762388571034,-500.0,0.00038591,120]
[393250314,1762388571093,-500.0,0.00038591,120]
[393250315,1762388571157,-204.3254944,0.00038591,120]
[393250316,1762388571218,-500.0,0.00038591,120]
[393250317,1762388571277,-500.0,0.00038591,120]
[393250318,1762388571339,-500.0,0.00038591,120]
[393250319,1762388571397,-485.41172635,0.00038591,120]
[393250320,1762388571456,-500.0,0.00038591,120]
[393250321,1762388571516,-500.0,0.00038591,120]
[393250322,1762388571577,-500.0,0.00038591,120]
[393250323,1762388571640,-500.0,0.00038591,120]
[393250324,1762388571700,-500.0,0.00038591,120]
[393250325,1762388571757,-500.0,0.00038591,120]
[393250326,1762388571815,-500.0,0.00038591,120]
[393250327,1762388571874,-500.0,0.00038591,120]
[393250328,1762388571938,-500.0,0.00038591,120]
[393250329,1762388571997,-500.0,0.00038591,120]
[393250330,1762388572057,-500.0,0.00038591,120]
[393250331,1762388572116,-500.0,0.00038591,120]
[393250332,1762388572178,-500.0,0.00038591,120]
[393250333,1762388572241,-500.0,0.00038591,120]
[393250334,1762388572298,-500.0,0.00038591,120]
[393250335,1762388572357,-500.0,0.00038591,120]
[393250336,1762388572416,-500.0,0.00038591,120]
[393250337,1762388572479,-500.0,0.00038591,120]
[393250338,1762388572537,-500.0,0.00038591,120]
[393250339,1762388572597,-500.0,0.00038591,120]
[393250340,1762388572658,-500.0,0.00038591,120]
[393250341,1762388572717,-500.0,0.00038591,120]
[393250342,1762388572774,-500.0,0.00038591,120]
[393250343,1762388572833,-500.0,0.00038591,120]
[393250344,1762388572891,-500.0,0.00038591,120]
[393250345,1762388572949,-500.0,0.00038591,120]
[393250346,1762388573015,-500.0,0.00038591,120]
[393250347,1762388573081,-500.0,0.00038591,120]
[393250348,1762388573143,-500.0,0.00038591,120]
[393250349,1762388573207,-500.0,0.00038591,120]
[393250350,1762388573268,-500.0,0.00038591,120]
[393250351,1762388573331,-500.0,0.00038591,120]
[393250352,1762388573393,-500.0,0.00038591,120]
[393250353,1762388573456,-500.0,0.00038591,120]
[393250354,1762388573517,-500.0,0.00038591,120]
[393250355,1762388573576,-500.0,0.00038591,120]
[393250356,1762388573639,-500.0,0.00038591,120]
[393250357,1762388573700,-500.0,0.00038591,120]
[393250358,1762388573760,-506.47081798,0.00038591,120]
[393250359,1762388573821,-514.64079784,0.00038591,120]
[393250360,1762388573881,-500.0,0.00038591,120]
[393250361,1762388573941,-500.0,0.00038591,120]
[393250362,1762388574002,-500.0,0.00038591,120]
[393250363,1762388574063,-500.0,0.00038591,120]
[393250364,1762388574123,-602.19278386,0.00038591,120]
[393250365,1762388574186,-251.08188564,0.00038591,120]
[393250366,1762388574247,-150.0,0.00038591,30]
[393250367,1762388574309,-500.0,0.00038591,120]
[393250368,1762388574370,-500.0,0.00038591,120]
[393250369,1762388574434,-500.0,0.00038591,120]
[393250370,1762388574497,-500.0,0.00038591,120]
[393250371,1762388574560,-500.0,0.00038591,120]
[393250372,1762388574622,-500.0,0.00038591,120]
[393250373,1762388574683,-500.0,0.00038591,120]
[393250374,1762388574743,-598.49085124,0.00038591,120]
[393250375,1762388574805,-472.86371482,0.00038591,120]
[393250376,1762388574867,-1510.22588927,0.00038591,120]
[393250377,1762388574929,-500.0,0.00038591,120]